fUSD/lending_fUSD_20260524
["ID","MTS","AMOUNT","RATE_DAILY","PERIOD"]
[422916600,1779622238000,-600.54505784,0.00014999,2]
[422916570,1779622238000,-237.0,8.299e-05,2]
[422916571,1779622238000,-450.23756466,0.000149,2]
[422916572,1779622238000,-6122.79123421,0.000149,2]
[422916580,1779622238000,-150.0,0.00014986,2]
[422916576,1779622238000,-1517.98749943,0.000149,2]
[422916577,1779622238000,-402.675374,0.000149,2]
[422916574,1779622238000,-154.56202873,0.000149,2]
[422916573,1779622238000,-23302.46158907,0.000149,2]
[422916638,1779622238000,-500.0,0.00014999,2]
[422916578,1779622238000,-163.5,0.00014941,2]
[422916575,1779622238000,-159.06154663,0.000149,2]
[422916579,1779622238000,-1262.8,0.00014959,2]
[422916582,1779622238000,-500.0,0.00014999,2]
[422916596,1779622238000,-500.0,0.00014999,2]
[422916583,1779622238000,-500.0,0.00014999,2]
[422916598,1779622238000,-340.5912286,0.00014999,2]
[422916590,1779622238000,-209.0,0.00014999,2]
[422916591,1779622238000,-500.0,0.00014999,2]
[422916593,1779622238000,-455.45281356,0.00014999,2]
[422916601,1779622238000,-500.0,0.00014999,2]
[422916650,1779622238000,-500.0,0.00014999,2]
[422916610,1779622238000,-500.0,0.00014999,2]
[422916654,1779622238000,-500.0,0.00014999,2]
[422916703,1779622238000,-232.34,0.00016802,2]
[422916686,1779622238000,-500.0,0.00015273,2]
[422916704,1779622238000,-656.53,0.00016812,2]
[422916706,1779622238000,-232.34,0.00017192,2]
[422916716,1779622238000,-249.97,0.00018623,2]
[422916705,1779622238000,-157.95,0.00017141,2]
[422916708,1779622238000,-166.66,0.00017244,2]
[422916720,1779622238000,-656.53,0.00018913,2]
[422916718,1779622238000,-9708.54,0.0001872,2]
[422916707,1779622238000,-213.25465156,0.00017233,2]
[422916714,1779622238000,-560.0,0.00018564,2]
[422916709,1779622238000,-433.0,0.00017253,2]
[422916711,1779622238000,-187.16514992,0.00018,2]
[422916710,1779622238000,-1084.0,0.00017892,2]
[422916722,1779622238000,-2122.10623674,0.00019,2]
[422916724,1779622238000,-1903.74,0.00019046,2]
[422916728,1779622238000,-17817.1104,0.00019565,2]
[422916652,1779622238000,-500.0,0.00014999,2]
[422916726,1779622238000,-157.95,0.00019046,2]
[422916690,1779622238000,-232.34,0.0001602,2]
[422916702,1779622238000,-200.0,0.00016632,2]
[422916712,1779622238000,-157.95,0.00018094,2]
[422916696,1779622238000,-1680.0,0.00016266,2]
[422916658,1779622238000,-500.0,0.00014999,2]
[422916688,1779622238000,-232.34,0.00015629,2]
[422916666,1779622238000,-500.0,0.00014999,2]
[422916656,1779622238000,-500.0,0.00014999,2]
[422916660,1779622238000,-500.0,0.00014999,2]
[422916672,1779622238000,-500.0,0.00014999,2]
[422916668,1779622238000,-500.0,0.00014999,2]
[422916664,1779622238000,-500.0,0.00014999,2]
[422916670,1779622238000,-550.0,0.00014999,2]
[422916674,1779622238000,-500.0,0.00014999,2]
[422916662,1779622238000,-500.0,0.00014999,2]
[422916678,1779622238000,-7251263.4841911,0.00015,2]
[422916680,1779622238000,-533.23,0.00015,2]
[422916682,1779622238000,-500.0,0.00015077,2]
[422916692,1779622238000,-255.0,0.00016031,2]
[422916694,1779622238000,-157.95,0.00016189,2]
[422916700,1779622238000,-232.34,0.00016411,2]
[422916698,1779622238000,-445.64,0.00016324,2]
[422916676,1779622238000,-500.0,0.00014999,2]
[422916684,1779622238000,-157.95,0.00015237,2]
[422916811,1779622239000,-500.0,0.00019664,2]
[422916815,1779622239000,-500.0,0.00019664,2]
[422916816,1779622239000,-500.0,0.00019664,2]
[422916812,1779622239000,-500.0,0.00019664,2]
[422916817,1779622239000,-544.91400853,0.00019664,2]
[422916807,1779622239000,-500.0,0.00019664,2]
[422916805,1779622239000,-500.0,0.00019664,2]
[422916813,1779622239000,-500.0,0.00019664,2]
[422916800,1779622239000,-500.0,0.00019664,2]
[422916814,1779622239000,-500.0,0.00019664,2]
[422916808,1779622239000,-370.62,0.00019664,2]
[422916802,1779622239000,-500.0,0.00019664,2]
[422916810,1779622239000,-500.0,0.00019664,2]
[422916825,1779622239000,-191.10191603,0.00019666,2]
[422916822,1779622239000,-487.0,0.00019665,2]
[422916821,1779622239000,-2000.0,0.00019665,2]
[422916823,1779622239000,-487.0,0.00019665,2]
[422916820,1779622239000,-500.0,0.00019665,2]
[422916829,1779622239000,-1619.4463343,0.00019705,2]
[422916819,1779622239000,-190.82542213,0.00019664,2]
[422916824,1779622239000,-691.15,0.00019665,2]
[422916830,1779622239000,-246922.8343604,0.00019705,2]
[422916826,1779622239000,-191.10191603,0.00019666,2]
[422916827,1779622239000,-160.0,0.00019675,2]
[422916828,1779622239000,-4214.62,0.00019704,2]
[422916832,1779622239000,-130644.607769,0.00019705,2]
[422916798,1779622239000,-500.0,0.00019664,2]
[422916841,1779622239000,-533.23,0.000199,2]
[422916818,1779622239000,-150.0,0.00019664,2]
[422916796,1779622239000,-500.0,0.00019664,2]
[422916750,1779622239000,-500.0,0.00019664,2]
[422916788,1779622239000,-4214.62,0.00019664,2]
[422916831,1779622239000,-4982.853516,0.00019705,2]
[422916737,1779622239000,-213.25465156,0.00019565,2]
[422916739,1779622239000,-191.10191603,0.00019567,2]
[422916735,1779622239000,-154.18225472,0.00019565,3]
[422916730,1779622239000,-197.59604993,0.00019565,2]
[422916743,1779622239000,-1193.71543393,0.00019663,2]
[422916741,1779622239000,-191.10191603,0.00019567,2]
[422916732,1779622239000,-1091.3841599,0.00019565,2]
[422916745,1779622239000,-840.61328548,0.00019663,2]
[422916747,1779622239000,-500.0,0.00019664,2]
[422916762,1779622239000,-4214.62,0.00019664,2]
[422916754,1779622239000,-500.0,0.00019664,2]
[422916760,1779622239000,-4214.62,0.00019664,2]
[422916766,1779622239000,-4214.62,0.00019664,2]
[422916786,1779622239000,-4214.62,0.00019664,2]
[422916764,1779622239000,-4214.62,0.00019664,2]
[422916757,1779622239000,-500.0,0.00019664,2]
[422916752,1779622239000,-500.0,0.00019664,2]
[422916768,1779622239000,-4214.62,0.00019664,2]
[422916772,1779622239000,-4214.62,0.00019664,2]
[422916775,1779622239000,-4214.62,0.00019664,2]
[422916770,1779622239000,-4214.62,0.00019664,2]
[422916780,1779622239000,-4214.62,0.00019664,2]
[422916777,1779622239000,-4214.62,0.00019664,2]
[422916779,1779622239000,-4214.62,0.00019664,2]
[422916794,1779622239000,-572.1,0.00019664,2]
[422916784,1779622239000,-4214.62,0.00019664,2]
[422916790,1779622239000,-4214.62,0.00019664,2]
[422916792,1779622239000,-4214.62,0.00019664,2]
[422916782,1779622239000,-4214.62,0.00019664,2]
[422916758,1779622239000,-571.26139988,0.00019664,2]
[422916842,1779622239000,-1413.27,0.0001999,14]
[422916865,1779622239000,-500.0,0.00020689,2]
[422916833,1779622239000,-59815.6550646,0.00019705,2]
[422916868,1779622239000,-150.0,0.00020689,2]
[422916872,1779622239000,-500.0,0.00020689,2]
[422916873,1779622239000,-500.0,0.00020689,2]
[422916875,1779622239000,-244.44970555,0.00020689,2]
[422916874,1779622239000,-500.0,0.00020689,2]
[422916880,1779622239000,-357.67045328,0.00020689,2]
[422916885,1779622239000,-500.0,0.00020689,2]
[422916883,1779622239000,-150.0,0.00020689,2]
[422916884,1779622239000,-150.0,0.00020689,2]
[422916877,1779622239000,-500.0,0.00020689,2]
[422916878,1779622239000,-500.0,0.00020689,2]
[422916876,1779622239000,-500.0,0.00020689,2]
[422916881,1779622239000,-500.0,0.00020689,2]
[422916879,1779622239000,-500.0,0.00020689,2]
[422916882,1779622239000,-500.0,0.00020689,2]
[422916887,1779622239000,-150.0,0.00020689,2]
[422916897,1779622239000,-500.0,0.00020689,2]
[422916893,1779622239000,-500.0,0.00020689,2]
[422916888,1779622239000,-260.54667082,0.00020689,2]
[422916892,1779622239000,-500.0,0.00020689,2]
[422916886,1779622239000,-172.12358848,0.00020689,2]
[422916898,1779622239000,-500.0,0.00020689,2]
[422916895,1779622239000,-500.0,0.00020689,2]
[422916890,1779622239000,-500.0,0.00020689,2]
[422916889,1779622239000,-500.0,0.00020689,2]
[422916835,1779622239000,-500.28174121,0.00019764,2]
[422916891,1779622239000,-500.0,0.00020689,2]
[422916896,1779622239000,-500.0,0.00020689,2]
[422916899,1779622239000,-500.0,0.00020689,2]
[422916863,1779622239000,-150.0,0.00020689,2]
[422916866,1779622239000,-150.0,0.00020689,2]
[422916894,1779622239000,-500.0,0.00020689,2]
[422916867,1779622239000,-500.0,0.00020689,2]
[422916862,1779622239000,-297.8008769,0.00020689,2]
[422916843,1779622239000,-154.0,0.0002,2]
[422916836,1779622239000,-10000.0,0.00019765,2]
[422916838,1779622239000,-208.8304494,0.00019823,2]
[422916837,1779622239000,-1020.0,0.000198,2]
[422916834,1779622239000,-7581.3487242,0.00019705,2]
[422916840,1779622239000,-191.10191603,0.000199,2]
[422916844,1779622239000,-378.0,0.0002,2]
[422916847,1779622239000,-250.0,0.0002,2]
[422916846,1779622239000,-187.0,0.0002,2]
[422916848,1779622239000,-154.0,0.0002,2]
[422916855,1779622239000,-500.0,0.00020689,2]
[422916845,1779622239000,-2669.0,0.0002,2]
[422916857,1779622239000,-180.50223967,0.00020689,2]
[422916839,1779622239000,-215.34753388,0.00019823,2]
[422916851,1779622239000,-200.13400693,0.000204,2]
[422916856,1779622239000,-500.0,0.00020689,2]
[422916858,1779622239000,-150.0,0.00020689,2]
[422916861,1779622239000,-150.0,0.00020689,2]
[422916869,1779622239000,-157.0337685,0.00020689,2]
[422916871,1779622239000,-500.0,0.00020689,2]
[422916870,1779622239000,-500.0,0.00020689,2]
[422916864,1779622239000,-179.29883903,0.00020689,2]
[422916854,1779622239000,-500.0,0.00020689,2]
[422916849,1779622239000,-299.99999901,0.0002,2]
[422916859,1779622239000,-500.0,0.00020689,2]
[422916860,1779622239000,-150.0,0.00020689,2]
[422916852,1779622239000,-500.0,0.00020689,2]
[422916853,1779622239000,-500.0,0.00020689,2]
[422916850,1779622239000,-251.58,0.00020366,2]
[422916929,1779622240000,-250.0,0.00022,2]
[422916933,1779622240000,-1087.0,0.00022892,5]
[422916937,1779622240000,-250.0,0.00023,2]
[422916931,1779622240000,-1091.38415989,0.00022753,2]
[422916938,1779622240000,-656.53,0.00023116,2]
[422916939,1779622240000,-249.97,0.00023279,2]
[422916936,1779622240000,-187.0,0.00023,2]
[422916930,1779622240000,-9708.54,0.00022691,2]
[422916940,1779622240000,-374.0,0.00023658,7]
[422916934,1779622240000,-1145.0,0.00022892,5]
[422916935,1779622240000,-378.0,0.00023,2]
[422916932,1779622240000,-445.64,0.00022854,2]
[422916942,1779622240000,-1000.0,0.000238,4]
[422916943,1779622240000,-533.23,0.000238,7]
[422916945,1779622240000,-378.0,0.00024,2]
[422916946,1779622240000,-187.0,0.00024,2]
[422916944,1779622240000,-16615.81,0.00024,2]
[422916950,1779622240000,-560.38385811,0.00024544,2]
[422916947,1779622240000,-250.0,0.00024,2]
[422916948,1779622240000,-2000.0,0.000242,2]
[422916951,1779622240000,-189.32,0.00024658,2]
[422916949,1779622240000,-151.0,0.00024324,2]
[422916952,1779622240000,-1000.0,0.00024658,2]
[422916928,1779622240000,-187.0,0.00022,2]
[422916941,1779622240000,-164.11,0.00023706,2]
[422916926,1779622240000,-5000.0,0.00021918,2]
[422916915,1779622240000,-378.0,0.00021,2]
[422916925,1779622240000,-500.0,0.000219,2]
[422916900,1779622240000,-500.0,0.00020689,2]
[422916901,1779622240000,-500.0,0.00020689,2]
[422916902,1779622240000,-549.11242239,0.00020689,2]
[422916906,1779622240000,-500.0,0.00020689,2]
[422916905,1779622240000,-500.0,0.00020689,2]
[422916904,1779622240000,-500.0,0.00020689,2]
[422916903,1779622240000,-500.0,0.00020689,2]
[422916907,1779622240000,-500.0,0.00020689,2]
[422916911,1779622240000,-500.0,0.00020689,2]
[422916909,1779622240000,-500.0,0.00020689,2]
[422916913,1779622240000,-1020.0,0.000208,3]
[422916908,1779622240000,-500.0,0.00020689,2]
[422916914,1779622240000,-249.97,0.00020951,2]
[422916910,1779622240000,-500.0,0.00020689,2]
[422916912,1779622240000,-382.05019127,0.00020689,2]
[422916917,1779622240000,-250.0,0.00021,2]
[422916916,1779622240000,-187.0,0.00021,2]
[422916922,1779622240000,-1224.0,0.00021888,2]
[422916953,1779622240000,-166.35,0.00024658,2]
[422916918,1779622240000,-166.66,0.00021004,2]
[422916919,1779622240000,-656.53,0.00021015,2]
[422916924,1779622240000,-927.0,0.00021888,2]
[422916920,1779622240000,-531.37,0.00021273,2]
[422916923,1779622240000,-3635.0,0.00021888,2]
[422916921,1779622240000,-533.23,0.000218,2]
[422916927,1779622240000,-378.0,0.00022,2]
[422916961,1779622240000,-656.53,0.00025218,2]
[422916992,1779622240000,-1387.16,0.0002755,30]
[422916956,1779622240000,-1594.891,0.00024888,2]
[422916985,1779622240000,-2669.0,0.000275,7]
[422916986,1779622240000,-215.34753388,0.000275,7]
[422916988,1779622240000,-91996.54519742,0.0002755,2]
[422916999,1779622240000,-348.18,0.00027711,7]
[422916989,1779622240000,-424.13,0.0002755,30]
[422916990,1779622240000,-348.18,0.0002755,30]
[422916991,1779622240000,-166.35,0.0002755,2]
[422916997,1779622240000,-1148.672,0.00027622,17]
[422916996,1779622240000,-1387.14,0.00027572,7]
[422916993,1779622240000,-166.9,0.0002755,2]
[422916998,1779622240000,-424.13,0.00027711,7]
[422916995,1779622240000,-1387.16,0.00027572,7]
[422917011,1779622240000,-16615.81,0.00028,2]
[422917001,1779622240000,-1387.14,0.00027732,2]
[422917000,1779622240000,-1387.16,0.00027732,2]
[422917002,1779622240000,-166.35,0.00027743,7]
[422917003,1779622240000,-166.9,0.00027743,7]
[422917005,1779622240000,-424.13,0.00027872,2]
[422917010,1779622240000,-166.9,0.00027936,30]
[422917007,1779622240000,-1387.16,0.00027892,30]
[422917004,1779622240000,-517.0,0.00027856,4]
[422917009,1779622240000,-166.35,0.00027936,30]
[422917006,1779622240000,-348.18,0.00027872,2]
[422917008,1779622240000,-1387.14,0.00027892,30]
[422916960,1779622240000,-517.0,0.00025082,2]
[422916982,1779622240000,-1500.0,0.00027397,2]
[422916983,1779622240000,-6973.8,0.00027397,10]
[422916994,1779622240000,-1387.14,0.0002755,30]
[422916979,1779622240000,-517.0,0.00027301,4]
[422916984,1779622240000,-4214.62,0.00027499,2]
[422916963,1779622240000,-166.35,0.00025526,7]
[422916955,1779622240000,-1000.0,0.000248,5]
[422916958,1779622240000,-199.0,0.00025,2]
[422916954,1779622240000,-166.9,0.00024658,2]
[422916957,1779622240000,-392.0,0.00025,2]
[422916959,1779622240000,-262.0,0.00025,2]
[422916962,1779622240000,-166.83,0.00025526,7]
[422916968,1779622240000,-531.37,0.00025786,2]
[422916967,1779622240000,-517.0,0.00025637,2]
[422916966,1779622240000,-2203.36,0.00025607,7]
[422916973,1779622240000,-151.0,0.00026296,2]
[422916969,1779622240000,-1517.98749942,0.000259,2]
[422916964,1779622240000,-166.9,0.00025526,7]
[422916981,1779622240000,-500.0,0.00027356,7]
[422916972,1779622240000,-517.0,0.00026192,3]
[422916976,1779622240000,-517.0,0.00026746,3]
[422916987,1779622240000,-150.0,0.00027521,2]
[422916980,1779622240000,-500.0,0.00027356,7]
[422916977,1779622240000,-2203.36,0.00026897,7]
[422916978,1779622240000,-200.0,0.00027164,2]
[422916970,1779622240000,-402.67537399,0.000259,2]
[422916974,1779622240000,-16615.81,0.000264,2]
[422916965,1779622240000,-1000.0,0.000256,2]
[422916971,1779622240000,-1091.38415989,0.0002594,2]
[422916975,1779622240000,-2669.0,0.000267,7]
[422917054,1779622241000,-424.13,0.00028838,2]
[422917047,1779622241000,-879.16356,0.0002871,2]
[422917051,1779622241000,-166.70953777,0.00028738,7]
[422917055,1779622241000,-2316.0,0.0002885,3]
[422917052,1779622241000,-444.08599724,0.00028754,7]
[422917042,1779622241000,-424.13,0.00028516,30]
[422917050,1779622241000,-207.52385658,0.00028738,7]
[422917046,1779622241000,-152.0,0.00028688,3]
[422917044,1779622241000,-348.18,0.00028677,7]
[422917045,1779622241000,-424.13,0.00028677,7]
[422917053,1779622241000,-348.18,0.00028838,2]
[422917048,1779622241000,-879.16356,0.0002871,2]
[422917057,1779622241000,-150.0,0.00028897,2]
[422917068,1779622241000,-334.90226209,0.0002891,7]
[422917056,1779622241000,-574.45589957,0.0002887,2]
[422917059,1779622241000,-328.92461468,0.0002891,7]
[422917060,1779622241000,-180.50929601,0.0002891,7]
[422917070,1779622241000,-201.02830183,0.0002891,7]
[422917058,1779622241000,-185.35183592,0.0002891,7]
[422917069,1779622241000,-298.89454583,0.0002891,7]
[422917061,1779622241000,-162.54329275,0.0002891,7]
[422917062,1779622241000,-155.61041628,0.0002891,7]
[422917065,1779622241000,-243.17503978,0.0002891,7]
[422917064,1779622241000,-168.33788087,0.0002891,7]
[422917067,1779622241000,-184.0887166,0.0002891,7]
[422917038,1779622241000,-348.18,0.00028355,2]
[422917049,1779622241000,-879.16357,0.0002871,2]
[422917043,1779622241000,-2316.0,0.0002853,3]
[422917013,1779622241000,-424.13,0.00028033,30]
[422917035,1779622241000,-152.0,0.00028332,7]
[422917066,1779622241000,-153.67015338,0.0002891,2]
[422917012,1779622241000,-50040.078844,0.00028022,2]
[422917022,1779622241000,-4214.62,0.00028056,2]
[422917016,1779622241000,-1387.14,0.00028053,7]
[422917021,1779622241000,-4214.62,0.00028056,2]
[422917018,1779622241000,-151.0,0.00028054,7]
[422917017,1779622241000,-151.0,0.00028054,7]
[422917014,1779622241000,-348.18,0.00028033,30]
[422917015,1779622241000,-1387.16,0.00028053,7]
[422917019,1779622241000,-4214.62,0.00028056,2]
[422917020,1779622241000,-4214.62,0.00028056,2]
[422917024,1779622241000,-108813.20132368,0.00028057,2]
[422917039,1779622241000,-424.13,0.00028355,2]
[422917034,1779622241000,-151.0,0.00028267,2]
[422917025,1779622241000,-2203.36,0.00028082,7]
[422917026,1779622241000,-1769.1355268,0.0002813,2]
[422917028,1779622241000,-166.92,0.0002813,2]
[422917031,1779622241000,-1619.4463343,0.00028244,2]
[422917032,1779622241000,-4982.853516,0.00028244,2]
[422917030,1779622241000,-348.18,0.00028194,7]
[422917027,1779622241000,-166.36,0.0002813,2]
[422917029,1779622241000,-424.13,0.00028194,7]
[422917036,1779622241000,-151.0,0.00028355,2]
[422917037,1779622241000,-205.46020334,0.00028355,2]
[422917041,1779622241000,-348.18,0.00028516,30]
[422917040,1779622241000,-517.0,0.00028411,5]
[422917023,1779622241000,-4214.74801849,0.00028056,2]
[422917071,1779622241000,-176.28760671,0.0002891,7]
[422917033,1779622241000,-7581.3487242,0.00028244,2]
[422917075,1779622241000,-178.64072071,0.0002891,7]
[422917100,1779622241000,-348.19,0.00029,30]
[422917103,1779622241000,-16615.81,0.000291,2]
[422917106,1779622241000,-2322.0,0.0002917,3]
[422917111,1779622241000,-181.315,0.00029302,14]
[422917109,1779622241000,-1500.0,0.000293,7]
[422917108,1779622241000,-16615.81,0.000293,2]
[422917127,1779622241000,-298.46016217,0.000295,40]
[422917110,1779622241000,-242.3375,0.00029302,14]
[422917112,1779622241000,-1589.0,0.0002938,3]
[422917117,1779622241000,-590.83561853,0.000295,40]
[422917107,1779622241000,-41539.53,0.000293,2]
[422917118,1779622241000,-601.80207372,0.000295,40]
[422917104,1779622241000,-533.23,0.000291,7]
[422917113,1779622241000,-10000.0,0.00029463,7]
[422917114,1779622241000,-2203.36,0.00029478,7]
[422917120,1779622241000,-688.61162269,0.000295,40]
[422917129,1779622241000,-329.82212217,0.000295,40]
[422917123,1779622241000,-335.15319604,0.000295,40]
[422917124,1779622241000,-347.71674867,0.000295,40]
[422917130,1779622241000,-338.4067531,0.000295,40]
[422917119,1779622241000,-639.72362061,0.000295,40]
[422917125,1779622241000,-357.11362035,0.000295,40]
[422917121,1779622241000,-211.75647878,0.000295,40]
[422917122,1779622241000,-313.1927718,0.000295,40]
[422917126,1779622241000,-206.16252983,0.000295,40]
[422917128,1779622241000,-318.4334576,0.000295,40]
[422917115,1779622241000,-299.21399434,0.000295,40]
[422917102,1779622241000,-41539.53,0.000291,2]
[422917116,1779622241000,-541.94761653,0.000295,40]
[422917101,1779622241000,-424.18,0.00029,30]
[422917097,1779622241000,-879.16357,0.00029,2]
[422917074,1779622241000,-184.91288717,0.0002891,7]
[422917078,1779622241000,-102037.11268313,0.00029,2]
[422917072,1779622241000,-201.32778714,0.0002891,7]
[422917080,1779622241000,-10000.0,0.00029,2]
[422917077,1779622241000,-517.0,0.00028965,6]
[422917076,1779622241000,-152.45071252,0.0002891,7]
[422917079,1779622241000,-110000.0,0.00029,2]
[422917082,1779622241000,-788.5,0.00029,7]
[422917081,1779622241000,-2599.0,0.00029,2]
[422917092,1779622241000,-6695.01879164,0.00029,2]
[422917093,1779622241000,-240.0,0.00029,2]
[422917083,1779622241000,-1142.64,0.00029,7]
[422917073,1779622241000,-159.56173684,0.0002891,7]
[422917084,1779622241000,-1090.0,0.00029,2]
[422917105,1779622241000,-1091.38415989,0.00029128,2]
[422917088,1779622241000,-725.02688317,0.00029,2]
[422917099,1779622241000,-500.0,0.00029,2]
[422917095,1779622241000,-160.0,0.00029,2]
[422917096,1779622241000,-879.16356,0.00029,2]
[422917094,1779622241000,-28359.82700228,0.00029,2]
[422917098,1779622241000,-879.16357,0.00029,2]
[422917091,1779622241000,-10000.0,0.00029,2]
[422917089,1779622241000,-223.0,0.00029,120]
[422917087,1779622241000,-7465.13855542,0.00029,2]
[422917086,1779622241000,-797.07023326,0.00029,2]
[422917085,1779622241000,-2022.39658136,0.00029,2]
[422917090,1779622241000,-458.38,0.00029,2]
[422917149,1779622242000,-378.0,0.00029899,30]
[422917151,1779622242000,-155.0,0.00029899,30]
[422917153,1779622242000,-1142.64,0.000299,7]
[422917155,1779622242000,-153.0,0.000299,30]
[422917154,1779622242000,-187.0,0.000299,30]
[422917152,1779622242000,-788.5,0.000299,7]
[422917169,1779622242000,-346.71407154,0.0003,5]
[422917168,1779622242000,-10599.77647005,0.0003,5]
[422917157,1779622242000,-250.0,0.000299,30]
[422917160,1779622242000,-234.979421,0.00029997,7]
[422917159,1779622242000,-154.0,0.000299,30]
[422917150,1779622242000,-152.0,0.00029899,30]
[422917165,1779622242000,-300.1221212,0.0003,7]
[422917164,1779622242000,-1599.03868769,0.0003,30]
[422917158,1779622242000,-154.0,0.000299,30]
[422917148,1779622242000,-154.0,0.00029899,30]
[422917137,1779622242000,-3014.9397514,0.000295,40]
[422917156,1779622242000,-152.0,0.000299,30]
[422917166,1779622242000,-1000.0,0.0003,2]
[422917131,1779622242000,-893.76929271,0.000295,40]
[422917133,1779622242000,-2181.56272862,0.000295,40]
[422917141,1779622242000,-14191.63950926,0.0002955,2]
[422917142,1779622242000,-1587.0,0.00029677,3]
[422917143,1779622242000,-1589.0,0.00029801,3]
[422917132,1779622242000,-2021.55875343,0.000295,40]
[422917134,1779622242000,-2229.97001781,0.000295,40]
[422917139,1779622242000,-500.0,0.00029548,60]
[422917140,1779622242000,-500.0,0.00029548,60]
[422917135,1779622242000,-2438.38128226,0.000295,40]
[422917136,1779622242000,-2646.79254672,0.000295,40]
[422917138,1779622242000,-517.0,0.0002952,6]
[422917145,1779622242000,-153.0,0.00029899,30]
[422917146,1779622242000,-151.0,0.00029899,30]
[422917147,1779622242000,-166.0,0.00029899,30]
[422917144,1779622242000,-24781.2009116,0.0002985,7]
[422917162,1779622242000,-191.66124441,0.00029997,7]
[422917161,1779622242000,-187.79581812,0.00029997,7]
[422917187,1779622242000,-239.13865205,0.00030081,7]
[422917190,1779622242000,-150.0,0.00030098,2]
[422917191,1779622242000,-150.43047332,0.000301,120]
[422917193,1779622242000,-465707.43354655,0.0003013,7]
[422917192,1779622242000,-500.0,0.0003013,2]
[422917203,1779622242000,-3734.67371455,0.0003013,7]
[422917202,1779622242000,-701.21521527,0.0003013,7]
[422917205,1779622242000,-199.66930665,0.000297,2]
[422917204,1779622242000,-786.0,0.00028056,10]
[422917209,1779622242000,-155.09503152,0.00030137,7]
[422917207,1779622242000,-200.0,0.00030137,2]
[422917211,1779622242000,-3469.35616453,0.0003018,45]
[422917208,1779622242000,-881.89,0.00030137,30]
[422917210,1779622242000,-177.96954549,0.00030137,40]
[422917167,1779622242000,-317.09712093,0.0003,120]
[422917188,1779622242000,-888.17199449,0.00030097,7]
[422917189,1779622242000,-150.0,0.00030098,2]
[422917206,1779622242000,-440583.62791542,0.0003013,7]
[422917186,1779622242000,-242.90357153,0.00030081,7]
[422917163,1779622242000,-164.76,0.0003,120]
[422917185,1779622242000,-234.88649072,0.00030081,7]
[422917171,1779622242000,-6005.41679876,0.0003,3]
[422917172,1779622242000,-200.0,0.0003,14]
[422917181,1779622242000,-517.0,0.00030075,7]
[422917182,1779622242000,-3634.94724665,0.0003008,7]
[422917174,1779622242000,-193.9142622,0.0003,2]
[422917173,1779622242000,-1132.34,0.0003,30]
[422917170,1779622242000,-586.68649388,0.0003,4]
[422917175,1779622242000,-215.34753388,0.0003,3]
[422917177,1779622242000,-180.93336683,0.00030006,7]
[422917179,1779622242000,-158.53276591,0.00030019,7]
[422917183,1779622242000,-415.04771315,0.00030081,7]
[422917180,1779622242000,-186.69126992,0.00030019,7]
[422917178,1779622242000,-231.13098004,0.00030006,7]
[422917176,1779622242000,-208.8304494,0.0003,30]
[422917184,1779622242000,-333.41907554,0.00030081,7]
[422917260,1779622243000,-383.32248882,0.00030891,7]